Cogmind - Beta 13 @@@ ROGUE MODE // 2024.04.15 @ 03:25:06 Player: ToasterKoishi Result: Destroyed by S-27 Virus with Autogun Performance ------------- Evolutions (4) 2000 Regions Visited (6) 1200 Robots Destroyed (0) 0 Value Destroyed (0) 0 Prototype IDs (0) 0 Alien Tech Used (0) 0 Bonus (1525) 1525 TOTAL SCORE: 4725 Bonus ------- Pacifist 1325 Entered Garrisons 200 Cogmind --------- Core Integrity 0/850 Matter 250/300 Energy 98/100 System Corruption 2% Temperature Cool (0) Movement Core (50) Location -6/Factory Parts ------- > --- POWER (1) -------- (None) > --- PROPULSION (2) --- (None) > --- UTILITY (10) ----- Advanced Terrain Scan Processor > --- WEAPON (2) ------- (None) > --- INVENTORY (5) ---- Compact Battery (200) Enhanced Optical Array Enhanced Optical Array Peak State ------------ > --- POWER ------------ (None) > --- PROPULSION ------- (None) > --- UTILITY ---------- Terrain Scanner Reaction Control System Reaction Control System Hacking Suite Hacking Suite Hacking Suite > --- WEAPON ----------- (None) > --- INVENTORY -------- (None) [Rating: 16] Favorites ----------- Power None Propulsion None Utility Hacking Suite Device Reaction Control System Processor Improved Signal Interpreter Hackware Hacking Suite Weapon None Build | -11 -10 -9 -8 -7 -7 -6 ------- Run | Yrd Mat Mat Mat Fac Gar Fac Slots Evolved 8 | . . 2 2 2 . 2 Power . | . . . . . . . Propulsion . | . . . . . . . Utility 8 | . . 2 2 2 . 2 Weapon . | . . . . . . . Parts Attached 13 | . . 4 4 1 . 4 Power . | . . . . . . . Engine . | . . . . . . . Core . | . . . . . . . Reactor . | . . . . . . . Propulsion . | . . . . . . . Treads . | . . . . . . . Leg . | . . . . . . . Wheel . | . . . . . . . Hover . | . . . . . . . Flight . | . . . . . . . Utility 13 | . . 4 4 1 . 4 Device 4 | . . . 3 . . 1 Storage . | . . . . . . . Processor 5 | . . . 1 1 . 3 Hackware 4 | . . 4 . . . . Protection . | . . . . . . . Artifact . | . . . . . . . Weapon . | . . . . . . . Energy Gun . | . . . . . . . Energy Cannon . | . . . . . . . Ballistic Gun . | . . . . . . . Ballistic Cannon . | . . . . . . . Launcher . | . . . . . . . Special Weapon . | . . . . . . . Impact Weapon . | . . . . . . . Slashing Weapon . | . . . . . . . Piercing Weapon . | . . . . . . . Special Melee Weapon . | . . . . . . . Unidentified Prototypes . | . . . . . . . Parts Lost 8 | . . 1 1 . 4 2 Power . | . . . . . . . Propulsion . | . . . . . . . Utility 8 | . . 1 1 . 4 2 Weapon . | . . . . . . . Highest Loss Streak 2 | . . 1 1 . 2 1 To Critical Strikes . | . . . . . . . Average Slot Usage (%) 27 | . . 23 47 44 38 8 Device 8 | . . . 22 15 8 . Processor 7 | . . . 1 13 15 6 Hackware 12 | . . 23 23 15 14 1 Naked Turns 135 | . 51 26 . . . 58 Heaviest Build 3 | . . . 3 2 2 2 Greatest Support 3 | 3 3 3 3 3 3 3 Greatest Overweight (x) . | . . . . . . . Average Overweight (x) . | . . . . . . . Largest Inventory Capacity 5 | 5 5 5 5 5 5 5 Average Capacity 5 | 5 5 5 5 5 5 5 Most Carried 3 | . . . 1 . 1 3 Average Carried . | . . . . . . 1 Final Capacity 5 | 5 5 5 5 5 5 5 Final Carried 3 | . . . . . 1 3 Class Distribution -------------------- 57% | Hacker-Mutant 42% | Mutant Dominant Class ---------------- Mutant | -10/Materials Hacker-Mutant | -9/Materials Hacker-Mutant | -8/Materials Hacker-Mutant | -7/Factory Hacker-Mutant | -7/Garrison Mutant | -6/Factory Resources | -11 -10 -9 -8 -7 -7 -6 ----------- Run | Yrd Mat Mat Mat Fac Gar Fac Matter Collected 217 | 111 . . . . 106 . Remotely . | . . . . . . . Salvage Created . | . . . . . . . Parts . | . . . . . . . Haulers Intercepted . | . . . . . . . Recyclers Shooed 1 | . . . 1 . . . Parts Field Recycled . | . . . . . . . Retrieved Matter . | . . . . . . . Parts Self-Destructed . | . . . . . . . Prevented . | . . . . . . . Kills | -11 -10 -9 -8 -7 -7 -6 ------- Run | Yrd Mat Mat Mat Fac Gar Fac Combat Hostiles Destroyed . | . . . . . . . Classes Destroyed . | . . . . . . . Best Kill Streak . | . . . . . . . Combat Bots Only . | . . . . . . . Max Kills in Single Turn . | . . . . . . . Gunslinging . | . . . . . . . Exploded . | . . . . . . . Melee . | . . . . . . . Uniques/NPCs Destroyed . | . . . . . . . Combat | -11 -10 -9 -8 -7 -7 -6 -------- Run | Yrd Mat Mat Mat Fac Gar Fac Hostile Shots Fired 248 | . 3 37 30 . 84 94 Missed 106 | . 2 10 16 . 31 47 Damage Taken 2229 | . 24 345 181 . 755 924 Core 2003 | . 24 334 105 . 686 854 Absorbed by Shields 55 | . . . . . 55 . Core Remaining (%) 57 | 100 90 16 80 . 2 . Volleys Fired . | . . . . . . . Largest . | . . . . . . . Hottest . | . . . . . . . Shots Fired . | . . . . . . . Gun . | . . . . . . . Cannon . | . . . . . . . Launcher . | . . . . . . . Special . | . . . . . . . Kinetic . | . . . . . . . Thermal . | . . . . . . . Explosive . | . . . . . . . Electromagnetic . | . . . . . . . Robot Hit Streak . | . . . . . . . Robot Miss Streak . | . . . . . . . Penetration Max . | . . . . . . . Secondary Targets . | . . . . . . . Shots Hit Robots . | . . . . . . . Core Hits 2 | . . . 1 . 1 . Critical Kills . | . . . . . . . Critical Parts Destroyed . | . . . . . . . Critical Strikes . | . . . . . . . Melee Attacks . | . . . . . . . Impact . | . . . . . . . Slashing . | . . . . . . . Piercing . | . . . . . . . Sneak Attacks . | . . . . . . . Combat Hostiles . | . . . . . . . Follow-up Attacks . | . . . . . . . Damage Inflicted 86 | . 4 8 33 . 25 16 Guns . | . . . . . . . Cannons . | . . . . . . . Explosions . | . . . . . . . Melee . | . . . . . . . Ramming 86 | . 4 8 33 . 25 16 Kinetic . | . . . . . . . Thermal . | . . . . . . . Explosive . | . . . . . . . Electromagnetic . | . . . . . . . Impact . | . . . . . . . Slashing . | . . . . . . . Piercing . | . . . . . . . Highest Corruption 5 | . . . . 2 5 2 Average Corruption 1 | . . . . 2 2 1 Corruption Purged . | . . . . . . . Corruption Blocked . | . . . . . . . Effects 6 | . . . . 1 4 1 Message Errors 1 | . . . . . 1 . Matter Fused 3 | . . . . 1 1 1 Heat Flow Errors 1 | . . . . . 1 . Data Loss (minor) 1 | . . . . . 1 . Overload Shots . | . . . . . . . Overflow Damage . | . . . . . . . Projectiles . | . . . . . . . Explosions . | . . . . . . . Melee . | . . . . . . . Knockbacks . | . . . . . . . Impact . | . . . . . . . Kinetic . | . . . . . . . Secondary . | . . . . . . . Self-Inflicted Damage 41 | . 2 4 16 . 11 8 Shots . | . . . . . . . Rammed 13 | . 1 1 4 . 5 2 Targets Rammed 13 | . 1 1 4 . 5 2 Kicked . | . . . . . . . Crushed . | . . . . . . . Highest Temperature 160 | . . 5 . . 160 . Average Temperature 77 | . . 5 . . 92 . Received Heat Transfer 276 | . 9 183 45 . . 39 Siege Activations . | . . . . . . . Robots Corrupted . | . . . . . . . Combat Hostiles . | . . . . . . . Parts Fried . | . . . . . . . Impact Corruptions . | . . . . . . . Robots Melted . | . . . . . . . Combat Hostiles . | . . . . . . . Parts Melted . | . . . . . . . Heat Transferred . | . . . . . . . Parts Sabotaged . | . . . . . . . Parts Stolen . | . . . . . . . Parts Stripped . | . . . . . . . Power Chain Reactions . | . . . . . . . Alert | -11 -10 -9 -8 -7 -7 -6 ------- Run | Yrd Mat Mat Mat Fac Gar Fac Peak Influence 151 | . 30 86 91 74 51 151 Initial 51 | . . 12 35 41 51 21 Average 46 | . 8 48 55 49 41 55 Maximum Alert Level . | . . . . . . . Low Security (%) 100 | 100 100 100 100 100 100 100 Level 1 . | . . . . . . . Level 2 . | . . . . . . . Level 3 . | . . . . . . . Level 4 . | . . . . . . . Level 5 . | . . . . . . . High Security . | . . . . . . . Max Security . | . . . . . . . Squads Dispatched 4 | . . 1 . . . 3 Investigation 3 | . . 1 . . . 2 Extermination . | . . . . . . . Reinforcement 1 | . . . . . . 1 Assault . | . . . . . . . Garrison . | . . . . . . . Intercept . | . . . . . . . Searches Triggered . | . . . . . . . Construction Impeded . | . . . . . . . Haulers Reinforced 1 | . . . . . . 1 Active Scanning Responses . | . . . . . . . Cargo Convoy Interrupts . | . . . . . . . Stealth | -11 -10 -9 -8 -7 -7 -6 --------- Run | Yrd Mat Mat Mat Fac Gar Fac Distress Signals 2 | . . 2 . . . . Communications Jammed . | . . . . . . . Distress Signals . | . . . . . . . Times Spotted 49 | . 6 12 10 . 10 11 Peak Tracking Total 13 | . 4 13 8 . 8 5 Tactical Retreats 7 | . . 1 . . 1 5 Traps | -11 -10 -9 -8 -7 -7 -6 ------- Run | Yrd Mat Mat Mat Fac Gar Fac Traps Triggered 6 | . . . . 1 3 2 Indirectly . | . . . . . . . Trap Hack Attempts . | . . . . . . . Triggered . | . . . . . . . Disarmed . | . . . . . . . Reprogrammed . | . . . . . . . Reused . | . . . . . . . Traps Extracted . | . . . . . . . Installed . | . . . . . . . Triggered . | . . . . . . . Machines | -11 -10 -9 -8 -7 -7 -6 ---------- Run | Yrd Mat Mat Mat Fac Gar Fac Machines Disabled . | . . . . . . . Max in Single Turn . | . . . . . . . Machines Repaired . | . . . . . . . Machines Dismantled . | . . . . . . . Machines Sabotaged . | . . . . . . . Overloaded Fab Kills . | . . . . . . . Hacking | -11 -10 -9 -8 -7 -7 -6 --------- Run | Yrd Mat Mat Mat Fac Gar Fac Machines Accessed 9 | . 1 3 1 1 . 3 Terminals 8 | . 1 3 1 . . 3 Fabricators . | . . . . . . . Repair Stations . | . . . . . . . Recycling Units . | . . . . . . . Scanalyzers . | . . . . . . . Garrison Access 1 | . . . . 1 . . Total Hacks 17 | . 3 7 1 2 . 4 Successful 4 | . . 2 1 1 . . Failed 13 | . 3 5 . 1 . 4 Catastrophic 4 | . . 1 . . . 3 Database Lockouts . | . . . . . . . Manual 5 | . . 3 1 . . 1 Terminals 15 | . 3 7 1 . . 4 Fabricators . | . . . . . . . Repair Stations . | . . . . . . . Recycling Units . | . . . . . . . Scanalyzers . | . . . . . . . Garrison Access 2 | . . . . 2 . . Terminal Hacks 3 | . . 2 1 . . . Level Access Points 2 | . . 1 1 . . . Zone Layout 1 | . . 1 . . . . Fabricator Hacks . | . . . . . . . Repair Station Hacks . | . . . . . . . Recycling Unit Hacks . | . . . . . . . Scanalyzer . | . . . . . . . Garrison Access Hacks 1 | . . . . 1 . . Unlock Access 1 | . . . . 1 . . Unauthorized Hacks . | . . . . . . . Terminals . | . . . . . . . Fabricators . | . . . . . . . Repair Stations . | . . . . . . . Recycling Units . | . . . . . . . Scanalyzers . | . . . . . . . Garrison Access . | . . . . . . . Data Cores Recovered . | . . . . . . . Used . | . . . . . . . Hacking Detections 8 | . 1 2 1 1 . 3 Full Trace Events 3 | . 1 1 . . . 1 Feedback Events 1 | . . . . . . 1 Corruption 1 | . . . . . . 1 Feedback Blocked . | . . . . . . . Robot Schematics Acquired . | . . . . . . . Robots Built . | . . . . . . . Authchips . | . . . . . . . Time . | . . . . . . . Total Robot Build Rating . | . . . . . . . Part Schematics Acquired . | . . . . . . . Parts Built . | . . . . . . . Authchips . | . . . . . . . Time . | . . . . . . . Total Part Build Rating . | . . . . . . . Parts Repaired . | . . . . . . . Time . | . . . . . . . Parts Recycled . | . . . . . . . Recycled Matter . | . . . . . . . Retrieved Matter . | . . . . . . . Retrieved Components . | . . . . . . . Parts Scanalyzed . | . . . . . . . Part Schematics Acquired . | . . . . . . . Parts Damaged . | . . . . . . . Bothacking | -11 -10 -9 -8 -7 -7 -6 ------------ Run | Yrd Mat Mat Mat Fac Gar Fac Used RIF Installer . | . . . . . . . Robots Hacked . | . . . . . . . Non-combat . | . . . . . . . Combat . | . . . . . . . Robot Hacks Applied . | . . . . . . . Relay Couplers Released . | . . . . . . . Fabnet Peak Effective % . | . . . . . . . Robots Rewired . | . . . . . . . Allies Hacked . | . . . . . . . Hacks Repelled . | . . . . . . . Allies | -11 -10 -9 -8 -7 -7 -6 -------- Run | Yrd Mat Mat Mat Fac Gar Fac Total Allies . | . . . . . . . Largest Group . | . . . . . . . Highest-Rated Group . | . . . . . . . Highest-Rated Ally . | . . . . . . . Total Orders . | . . . . . . . Ally Attacks . | . . . . . . . Total Damage . | . . . . . . . Kills . | . . . . . . . Allies Corrupted . | . . . . . . . Allies Melted . | . . . . . . . Intel | -11 -10 -9 -8 -7 -7 -6 ------- Run | Yrd Mat Mat Mat Fac Gar Fac Robot Analysis Total . | . . . . . . . Derelict Logs Recovered . | . . . . . . . Drone Launches . | . . . . . . . Drone Recoveries . | . . . . . . . Exploration | -11 -10 -9 -8 -7 -7 -6 ------------- Run | Yrd Mat Mat Mat Fac Gar Fac Turns Passed 693 | 9 51 62 144 58 174 195 Spaces Moved 1229 | 18 100 109 264 104 264 370 Core 1229 | 18 100 109 264 104 264 370 Treads . | . . . . . . . Legs . | . . . . . . . Wheels . | . . . . . . . Hover . | . . . . . . . Flight . | . . . . . . . Fastest Speed 50 | 50 50 50 50 50 50 50 Average Speed 50 | 50 50 50 50 50 50 50 Slowest Speed 50 | 50 50 50 50 50 50 50 Overloaded Moves . | . . . . . . . Propulsion Burnouts . | . . . . . . . Robots Hopped . | . . . . . . . Cave-ins Triggered . | . . . . . . . Exploration Rate (%) 22 | 4 34 19 38 4 42 18 Regions Visited 6 Branch Regions . Pre-discovered Areas . | . . . . . . . Known Exits Taken 3 | . . 1 1 1 . . Unknown Exits Taken 2 | 1 1 . . . . . Scrap Searched . | . . . . . . . Spaces Dug . | . . . . . . . Terrain Destroyed . | . . . . . . . Melee . | . . . . . . . Projectile . | . . . . . . . AOE . | . . . . . . . Terrain Rammed . | . . . . . . . Walls Destroyed . | . . . . . . . Machines Disabled . | . . . . . . . Actions | -11 -10 -9 -8 -7 -7 -6 --------- Run | Yrd Mat Mat Mat Fac Gar Fac Total 1294 | 17 100 113 274 108 304 378 Wait 5 | . . . 1 4 . . Move 1221 | 17 99 108 263 103 261 370 Hop . | . . . . . . . Pick Up 4 | . . . 1 . 1 2 Fast Attach 12 | . . 4 3 1 . 4 Attach 1 | . . . 1 . . . Detach . | . . . . . . . Swap . | . . . . . . . Drop 1 | . . . 1 . . . Fire . | . . . . . . . Melee . | . . . . . . . Ram 13 | . 1 1 4 . 5 2 Kick . | . . . . . . . Crush . | . . . . . . . Escape Stasis 37 | . . . . . 37 . Rewire . | . . . . . . . Trap . | . . . . . . . Miscellaneous . | . . . . . . . Route ------- -11/Scrapyard -10/Materials -9/Materials (discovered 3 exits: *Mat x3) -8/Materials (discovered 3 exits: *Fac x3) -7/Factory -7/Garrison (discovered 2 exits: *Fac x2) -6/Factory History --------- Turn | Location | Event 3 | -11/Scrapyard | Discovered new exit (range 15) 10 | -11/Scrapyard | Entered Materials 59 | -10/Materials | Discovered new exit (range 7) 61 | -10/Materials | Entered another Materials area 61 | -9/Materials | Evolved 2 slots: Utility x2 73 | -9/Materials | Identified exit to Materials 105 | -9/Materials | Core integrity fell below 50% 112 | -9/Materials | Core integrity fell below 20% 123 | -9/Materials | Entered another Materials area 123 | -8/Materials | Evolved 2 slots: Utility x2 180 | -8/Materials | Identified exit to Factory 267 | -8/Materials | Entered Factory 267 | -7/Factory | Evolved 2 slots: Utility x2 324 | -7/Factory | Identified exit to Garrison 325 | -7/Factory | Entered Garrison 383 | -7/Garrison | Triggered checkpoint 389 | -7/Garrison | Build established: Hacker-Mutant 399 | -7/Garrison | Triggered checkpoint 425 | -7/Garrison | Discovered new exit (range 10) 429 | -7/Garrison | Identified exit to Factory 429 | -7/Garrison | Attempted to access garrison exit controls, blocked by remote lockdown 472 | -7/Garrison | Core integrity fell below 50% 484 | -7/Garrison | Core integrity fell below 20% 484 | -7/Garrison | Discovered exit to Factory (range 8) 499 | -7/Garrison | Entered Factory 499 | -6/Factory | Evolved 2 slots: Utility x2 595 | -6/Factory | Spotted B-75 Beast 631 | -6/Factory | Core integrity fell below 50% 668 | -6/Factory | Core integrity fell below 20% 694 | -6/Factory | Destroyed by S-27 Virus with Autogun Last Messages --------------- 00544_ Connecting with Terminal... 00552_ K-01 Serf pushes Y-54 Guardian. 00553_ ALERT: All DSF locations entering lockdown mode. 00553_ K-01 Serf pushes Y-54 Guardian. 00563_ G-50 Soldier knocked back. 00588_ Acquired Imp. Reaction Control System. 00591_ Acquired Adv. Terrain Scan Processor. 00598_ Imp. Reaction Control System destroyed. 00602_ K-01 Serf cleans the Fusion Modulator. 00637_ Acquired Enh. Optical Array. 00659_ Triggered Alarm Trap. 00659_ An alarm sounds. 00659_ ALERT: Alarm triggered, dispatching investigation squad. 00669_ System corrupted: Matter fused (-6). 00681_ Slammed into A-15 Conveyor. 00681_ A-15 Conveyor calls for reinforcements. 00681_ ALERT: Hostile activity reported, dispatching reinforcements to area. 00682_ Slammed into A-15 Conveyor. 00682_ Destabilizing: System corrupted (+1). 00688_ Enh. Optical Array destroyed. Map ----- +----------------------------------------------------+ | ?????????????????????????????????????????????????? | | ?????????????????????????????????????????????????? | | ?????????????????????????????????????????????????? | | ?????????????????????????????????????????????????? | | ?????????????????????????????????????????????????? | | ?????????????????????????????????????????????????? | | ?????????????????????????????????????????????????? | | ?????????????????????????????????????????????????? | | ?????????????????????????????????????????????????? | | ?????????????????????????????????????????????????? | | ?????????????????????????????????#???????????????? | | ????????????????????????????????? ?????????????### | | ???????????????????????????????? ???????????? | | ???????????????????????????????? ???????????# | | ?????????????????????????"T????? ""??????????#"" | | ????????????????????????#"" ??"" """?????????#" | | ????????????????????????#"" """ """?#???????#"F | | ????????????????????????# #???????#"" | | ????????????????????????# """ """ #???????# | | ????????????????????????# """ """ #???????# "" | | ????????????????????????? """ """ #???????# "" | | ??????????????????????????? ?????????# "" | | ????????????????????????????? ???????????# | | ?????????????##################+############## | | ?????????? | | ?????????? @ | | ?????????? u | | ?????????? ########### # | | ??????????? R R #?????????# # | | ??????????? #### #####+######+#####+#?????????# # | | ????????????????????? ???????????????????????# # | | ??????????????????? ????????????????????????# # | | ??????????????????# "?????????????????????????# # | | ??????????????????# ??????????????????????????# # | | ??????????????????# ???????????????????????????# # | | ??????????????????#????????????????????????????# # | | ???????????????????????????????????????????????# # | | ???????????????????????????????????????????????# # | | ??????????????????????????????????????##########/# | | ??????????????????????????????????????# | | ??????????????????????????????????????# = | | ??????????????????????????????????????# ! | | ??????????????????????????????????????# | | ??????????????????????????????????????# """ """ | | ??????????????????????????????????????# """ """ | | ??????????????????????????????????????# """ """ | | ??????????????????????????????????????# | | ??????????????????????????????????????# """ """ | | ??????????????????????????????????????# """ """ | | ??????????????????????????????????????# """ """ | +----------------------------------------------------+ Best States ------------- Heat Dissipation 37 Energy Generation 5 Energy Capacity 100 Matter Stores 279 Matter Capacity 300 Sight Range 22 Terrain Scan Range 14 Terrain Scan Density 210 Evasion (%) 58 Offensive Hacking 40 Item Schematics ----------------- None Robot Schematics ------------------ None Fabricated ------------ Nothing Alien Tech Used ----------------- None Achievements -------------- None Challenges ------------ None Game ------ Seed MultinovaTacticalArmor Manual? 0 Play Time 00:15:18 Cumulative 54.7 hours Start 2024.04.15 @ 03:13:21 End 2024.04.15 @ 03:25:06 Sessions 1 Manual Loads 0 Difficulty Rogue Special Mode None Game No. 42 Rogue 42 Adventurer 0 Explorer 0 Win Type - Total 5 Types 4/0/1/0/0/0/0/0/0 Lore% 45 Gallery% 32 Achievement% 36 Wizard Run 0 Options --------- Layout 0 ASCII 0 Keyboard 0 Movement Numpad Keybinds 0 Fullscreen 2 Font 18/SmallcapsGlow Map View 112x50 Zoom Use 0% Tactical HUD 1 Map Filters NONE Filters NONE Steam 1 RUN: 24aed3a0-fb7c-455a-aa7e-aba45df40509